bitfinex-derivatives/quotes_ETHF0:USTF0_20250212
["timestamp","ask_amount","ask_price","bid_price","bid_amount"]
[1739324469066,4.07708972,2611.5,2611.3,44.5993]
[1739324470371,4.07708972,2611.5,2611.4,0.46673388]
[1739324470571,4.07708972,2611.5,2611.3,44.5993]
[1739324471167,4.07708972,2611.5,2611.4,0.46673274]
[1739324471364,4.07708972,2611.5,2611.4,1.07373274]
[1739324471570,4.698,2611.8,2611.4,1.07373274]
[1739324471768,4.698,2611.8,2611.5,0.46673274]
[1739324471769,2.979,2611.8,2611.5,0.46673274]
[1739324471969,2.979,2611.8,2611.6,0.46671971]
[1739324472172,2.979,2611.8,2611.7,1.06181971]
[1739324472871,2.979,2611.8,2611.7,0.5951]
[1739324473073,2.979,2611.8,2611.7,1.06189653]
[1739324473472,2.979,2611.8,2611.7,0.46679653]
[1739324473668,7.10594178,2611.8,2611.4,0.607]
[1739324473871,4.90838394,2611.7,2611.3,44.5993]
[1739324474272,4.12694178,2611.6,2611.3,44.5993]
[1739324474471,4.12694178,2611.6,2611.1,0.00575109]
[1739324474472,1.719,2611.5,2611.1,0.00575109]
[1739324474670,3.2078,2611.4,2611.1,0.00575109]
[1739324474869,7.32333975,2611.4,2611.1,0.00575109]
[1739324475177,0.6075,2611.3,2611.1,40.80575109]
[1739324475371,0.5696,2611.2,2611.1,40.80575109]
[1739324475577,4.59386111,2611.2,2611.1,0.00575109]
[1739324478275,4.02426111,2611.2,2611.1,0.00575109]
[1739324478482,4.02426111,2611.2,2611.1,0.4728536]
[1739324479075,4.02426111,2611.2,2611.1,0.00575109]
[1739324480782,4.02426111,2611.2,2611.1,0.47279868]
[1739324481082,4.02426111,2611.2,2611.1,0.4727827]
[1739324481588,1.719,2611.6,2611.1,0.4727827]
[1739324481879,1.719,2611.6,2611.2,4.17311555]
[1739324482080,1.719,2611.6,2611.3,3.67483161]
[1739324482281,1.719,2611.6,2611.4,0.46703161]
[1739324482583,1.719,2611.6,2611.5,0.46703161]
[1739324483179,1.719,2611.6,2611.5,0.46699186]
[1739324483384,1.719,2611.6,2611.2,3.70608394]
[1739324483577,5.94135172,2611.6,2611.2,0.5521]
[1739324483777,0.5963,2611.5,2611.1,0.00575109]
[1739324484281,4.22235172,2611.4,2611.2,0.46702833]
[1739324484487,1.719,2611.6,2611.3,0.46701179]
[1739324484783,1.719,2611.6,2611.4,1.05501179]
[1739324485083,1.719,2611.6,2611.5,0.46698342]
[1739324487287,1.719,2611.6,2611.5,0.46692078]
[1739324488585,5.81341321,2611.6,2611.1,3.21355109]
[1739324488775,0.5617,2611.5,2611.2,0.46692667]
[1739324488983,0.5972,2611.4,2611.1,3.21355109]
[1739324489279,4.69161321,2611.4,2611.1,0.00575109]
[1739324492184,7.89941321,2611.4,2611.1,0.00575109]
[1739324494081,4.69161321,2611.4,2611.1,0.00575109]
[1739324494281,1.719,2611.3,2611.1,0.00575109]
[1739324494588,4.17056204,2611.2,2611.1,0.00575109]
[1739324494786,4.17056204,2611.2,2611.1,0.47274185]
[1739324494988,1.719,2611.3,2611.1,0.47274185]
[1739324495187,1.719,2611.3,2611.1,0.00575109]
[1739324495589,4.16893709,2611.2,2611.1,0.00575109]
[1739324495890,4.16893709,2611.2,2611.1,0.47277134]
[1739324496087,4.16893709,2611.2,2611.1,0.00575109]
[1739324503393,4.16893709,2611.2,2611.1,40.80575109]
[1739324506392,4.16893709,2611.2,2611.1,0.00575109]
[1739324512998,1.719,2611.2,2611.1,0.00575109]
[1739324513290,2.979,2611.3,2611.1,0.00575109]
[1739324513499,3.2078,2611.4,2611.1,0.59985109]
[1739324513690,1.719,2611.6,2611.2,4.22022275]
[1739324513993,1.719,2611.7,2611.4,3.2078]
[1739324514194,6.14296985,2611.7,2611.5,0.5831]
[1739324514392,2.3171,2611.9,2611.5,0.5831]
[1739324514695,4.07279737,2611.8,2611.5,0.5831]
[1739324516295,3.2078,2612.0,2611.6,0.46697143]
[1739324516497,21.78,2612.1,2611.7,0.562]
[1739324516693,4.34159406,2611.9,2611.8,0.5848]
[1739324516997,20.061,2612.1,2611.8,0.5848]
[1739324517495,20.061,2612.1,2611.9,0.5728]
[1739324520895,20.6274,2612.1,2611.9,0.5728]
[1739324521100,20.061,2612.1,2611.9,0.5728]
[1739324521695,20.061,2612.1,2611.5,6.36178394]
[1739324521896,20.061,2612.1,2611.6,1.66520749]
[1739324522101,20.061,2612.1,2611.6,1.1989]
[1739324522403,4.43059663,2612.0,2611.4,0.577]
[1739324522603,4.99699663,2612.0,2611.4,1.7759]
[1739324523008,8.15098057,2612.0,2611.4,1.7759]
[1739324523298,3.2078,2611.8,2611.1,0.00575109]
[1739324523499,0.5873,2611.7,2611.2,0.5978]
[1739324523700,1.718,2611.6,2611.2,0.5978]
[1739324524103,4.41865334,2611.5,2611.2,0.5978]
[1739324524509,4.41865334,2611.5,2611.3,41.4074]
[1739324526406,3.2078,2611.8,2611.3,41.4074]
[1739324526616,3.2078,2611.8,2611.5,3.15398394]
[1739324526801,2.2844,2612.0,2611.6,0.5927]
[1739324527000,2.2844,2612.0,2611.7,0.5733]
[1739324527301,4.28909106,2611.9,2611.7,0.5733]
[1739324527909,1.718,2612.0,2611.8,0.5851]
[1739324528704,5.5348,2612.2,2611.8,0.5851]
[1739324529907,2.327,2612.2,2611.8,3.7929]
[1739324532906,2.327,2612.2,2611.8,0.5851]
[1739324533802,2.327,2612.2,2611.6,0.5927]
[1739324533803,8.08005425,2612.0,2611.3,40.8]
[1739324534004,4.87225425,2612.0,2611.4,1.66031692]
[1739324534203,4.87225425,2612.0,2611.5,0.46594762]
[1739324534509,8.08005425,2612.0,2611.4,1.1944]
[1739324535105,4.87225425,2612.0,2611.6,3.2078]
[1739324535407,4.87225425,2612.0,2611.4,1.1944]
[1739324535609,4.87225425,2612.0,2611.5,0.46602666]
[1739324535904,4.87225425,2612.0,2611.4,1.1944]
[1739324536102,0.609,2612.2,2611.6,3.2078]
[1739324536302,0.609,2612.2,2611.7,0.46601524]
[1739324536502,0.609,2612.2,2611.6,6.36178394]
[1739324536710,0.609,2612.2,2611.7,0.46606726]
[1739324536903,0.609,2612.2,2611.8,0.5986]
[1739324538211,4.72564345,2612.1,2611.8,0.5986]
[1739324540703,0.609,2612.2,2611.9,1.045853]
[1739324540903,0.609,2612.2,2611.9,1.1446]
[1739324541100,3.21355109,2612.3,2612.0,0.46654363]
[1739324541101,0.00575109,2612.3,2612.0,0.46654363]
[1739324541411,4.2110858,2612.2,2611.9,1.1446]
[1739324541611,4.2110858,2612.2,2612.0,0.46669299]
[1739324541909,4.2110858,2612.2,2611.9,1.1446]
[1739324542107,4.2110858,2612.2,2612.0,0.46669429]
[1739324542308,4.2110858,2612.2,2612.1,0.46694853]
[1739324544813,0.00575109,2612.3,2612.1,3.67474853]
[1739324545114,0.00575109,2612.3,2612.2,1.05194853]
[1739324545809,0.00575109,2612.3,2612.2,41.85194853]
[1739324549018,20.6324,2612.8,2612.2,41.85194853]
[1739324549318,0.56,2613.1,2612.6,3.15398394]
[1739324549514,0.5754,2613.2,2613.0,3.2078]
[1739324549818,2.278,2613.4,2613.1,0.46694853]
[1739324550017,2.278,2613.4,2613.1,0.5824]
[1739324550216,2.278,2613.4,2613.2,0.4662857]
[1739324550417,2.278,2613.4,2613.1,0.5824]
[1739324551720,2.278,2613.4,2613.0,3.21353998]
[1739324552016,2.278,2613.4,2613.0,3.79593998]
[1739324561926,0.56,2613.4,2613.2,3.15398394]
[1739324562418,0.56,2613.4,2613.0,3.79593998]
[1739324562623,0.56,2613.4,2613.1,40.8]
[1739324565519,0.576,2613.3,2613.1,40.8]
[1739324565924,0.564,2613.2,2613.1,40.8]
[1739324569318,4.63691168,2613.2,2613.1,40.8]
[1739324573433,4.07291168,2613.2,2613.1,40.8]
[1739324573631,4.3247,2613.4,2613.1,40.8]
[1739324573831,4.3247,2613.4,2613.2,1.1527]
[1739324574430,4.3247,2613.4,2613.3,40.8]
[1739324575725,1.1169,2613.4,2613.3,40.8]
[1739324580737,1.1169,2613.4,2613.3,41.2679468]
[1739324580932,1.1169,2613.4,2613.3,41.26794786]
[1739324581927,0.00573998,2613.5,2613.3,41.26794786]
[1739324582131,0.00573998,2613.5,2613.4,0.46794786]
[1739324582534,4.28956341,2613.5,2613.4,0.46794786]
[1739324582740,4.28956341,2613.5,2613.4,0.46795308]
[1739324583941,4.28956341,2613.5,2613.2,1.1527]
[1739324584247,4.28956341,2613.5,2613.3,0.46795165]
[1739324584540,4.28956341,2613.5,2613.2,41.9527]
[1739324584942,4.28956341,2613.5,2613.3,0.46796215]
[1739324585140,4.28956341,2613.5,2613.2,41.9527]
[1739324585335,4.28956341,2613.5,2613.3,0.46796146]
[1739324585541,4.28956341,2613.5,2613.2,41.9527]
[1739324585746,4.28956341,2613.5,2613.3,0.46796377]
[1739324586050,4.28956341,2613.5,2613.2,41.9527]
[1739324586251,4.28956341,2613.5,2613.3,0.46796753]
[1739324586546,4.28956341,2613.5,2613.2,41.9527]
[1739324586747,4.28956341,2613.5,2613.3,0.46797044]
[1739324586948,4.28956341,2613.5,2613.2,41.9527]
[1739324587151,4.28956341,2613.5,2613.3,0.46797042]
[1739324587342,4.28956341,2613.5,2613.2,41.9527]
[1739324587546,4.28956341,2613.5,2613.3,0.46797537]
[1739324587749,4.28956341,2613.5,2613.2,41.9527]
[1739324590354,4.28956341,2613.5,2613.2,1.1527]
[1739324595560,0.0027058,2613.4,2613.2,1.1527]
[1739324595860,0.0027058,2613.4,2613.3,0.46799226]
[1739324596461,0.0027058,2613.4,2613.3,41.26799226]
[1739324597463,0.0027058,2613.4,2613.3,41.26799141]
[1739324600066,0.0027058,2613.4,2613.3,41.26800144]
[1739324600859,0.0027058,2613.4,2613.3,0.46800144]
[1739324601665,0.0027058,2613.4,2613.3,3.67580144]
[1739324603767,0.0027058,2613.4,2613.3,3.67537326]
[1739324604267,0.0027058,2613.4,2613.3,3.2078]
[1739324606161,0.0027058,2613.4,2613.3,3.67530957]
[1739324607957,0.0027058,2613.4,2613.3,3.67517545]
[1739324608367,0.0027058,2613.4,2613.3,3.67511493]
[1739324609959,0.0027058,2613.4,2613.3,3.67503593]
[1739324612168,0.0027058,2613.4,2613.3,3.67485663]
[1739324614274,0.0027058,2613.4,2613.3,3.67472072]
[1739324615069,0.0027058,2613.4,2613.3,4.44015072]
[1739324616071,0.6049,2614.2,2613.3,9.67472072]
[1739324616271,1.1753,2614.2,2614.1,3.15398394]
[1739324616469,1.1753,2614.2,2614.1,3.62074205]
[1739324616670,1.1753,2614.2,2614.1,3.15398394]
[1739324616976,1.1753,2614.2,2614.1,3.62055374]
[1739324618170,1.1753,2614.2,2614.1,3.15398394]
[1739324618369,1.1753,2614.2,2613.8,3.15398394]
[1739324618572,1.1753,2614.2,2613.9,0.4663687]
[1739324618774,1.1753,2614.2,2614.0,0.4663687]
[1739324618975,1.1753,2614.2,2613.8,3.15398394]
[1739324619278,4.10619431,2614.1,2613.9,0.46637072]
[1739324619578,4.10619431,2614.1,2613.8,3.15398394]
[1739324623674,4.10619431,2614.1,2613.7,3.2078]
[1739324625475,7.31399431,2614.1,2613.5,3.15398394]
[1739324625685,7.31399431,2614.1,2613.6,0.46658452]
[1739324625874,7.31399431,2614.1,2613.4,3.2078]
[1739324629190,4.10619431,2614.1,2613.7,3.2078]
[1739324629591,5.82019431,2614.1,2613.7,3.2078]
[1739324630380,5.82019431,2614.1,2613.7,3.7705]
[1739324632689,4.10619431,2614.1,2613.7,3.7705]
[1739324632981,4.10619431,2614.1,2613.8,0.6046]
[1739324633186,4.10619431,2614.1,2613.9,0.46712544]
[1739324633484,4.10619431,2614.1,2614.0,0.46712768]
[1739324634187,4.10619431,2614.1,2613.8,0.6046]
[1739324634396,4.10619431,2614.1,2613.9,0.46713226]
[1739324634686,4.10619431,2614.1,2613.7,3.2078]
[1739324634886,4.10619431,2614.1,2613.8,0.46715314]
[1739324635090,4.10619431,2614.1,2613.7,3.2078]
[1739324635285,4.10619431,2614.1,2613.8,0.4671472]
[1739324635485,4.10619431,2614.1,2613.7,3.2078]
[1739324635686,4.10619431,2614.1,2613.8,0.46720949]
[1739324635886,4.10619431,2614.1,2613.9,0.46720949]
[1739324636186,4.10619431,2614.1,2613.7,3.8008]
[1739324636396,4.10619431,2614.1,2613.8,0.46720079]
[1739324636691,4.10619431,2614.1,2613.9,0.46720079]
[1739324636992,4.10619431,2614.1,2613.7,3.8008]
[1739324637188,4.10619431,2614.1,2613.8,0.46715048]
[1739324637387,4.10619431,2614.1,2613.9,0.46715048]
[1739324637583,4.10619431,2614.1,2613.7,3.8008]
[1739324637790,4.10619431,2614.1,2613.8,0.46719028]
[1739324637985,4.10619431,2614.1,2613.7,3.2078]
[1739324638180,7.31399431,2614.1,2613.4,3.7651]
[1739324638495,7.31399431,2614.1,2613.5,0.46725342]
[1739324638680,7.31399431,2614.1,2613.6,0.46725342]
[1739324638883,7.31399431,2614.1,2613.7,0.46725342]
[1739324639090,7.31399431,2614.1,2613.4,3.7651]
[1739324639291,7.31399431,2614.1,2613.5,0.46700603]
[1739324639491,7.31399431,2614.1,2613.6,0.46700603]
[1739324639690,7.31399431,2614.1,2613.7,0.46700603]
[1739324639886,7.31399431,2614.1,2613.4,3.7651]
[1739324640087,7.31399431,2614.1,2613.5,0.46705346]
[1739324640392,7.31399431,2614.1,2613.4,3.7651]
[1739324640584,7.31399431,2614.1,2613.5,0.46708661]
[1739324640785,7.31399431,2614.1,2613.4,3.7651]
[1739324640992,7.31399431,2614.1,2613.5,3.62106919]
[1739324641191,7.31399431,2614.1,2613.6,0.46704699]
[1739324641396,7.31399431,2614.1,2613.5,3.15398394]
[1739324641592,7.31399431,2614.1,2613.6,1.06226327]
[1739324641792,7.31399431,2614.1,2613.6,0.5953]
[1739324644596,7.31399431,2614.1,2613.4,3.7651]
[1739324646506,7.31399431,2614.1,2613.5,0.4670272]
[1739324646695,7.31399431,2614.1,2613.4,3.7651]
[1739324647394,7.31399431,2614.1,2613.5,0.46714697]
[1739324647700,7.31399431,2614.1,2613.4,3.7651]
[1739324648001,7.31399431,2614.1,2613.5,0.46712352]
[1739324648201,7.31399431,2614.1,2613.6,0.46706999]
[1739324648502,7.31399431,2614.1,2613.7,0.46709399]
[1739324648699,7.31399431,2614.1,2613.8,1.02119399]
[1739324648899,7.31399431,2614.1,2613.9,0.46709399]
[1739324649101,7.31399431,2614.1,2613.8,0.5541]
[1739324649300,7.31399431,2614.1,2613.9,0.46738645]
[1739324649502,7.31399431,2614.1,2613.5,0.5626]
[1739324649800,7.31399431,2614.1,2613.6,0.46739624]
[1739324650003,7.31399431,2614.1,2613.7,0.46739624]
[1739324650201,7.31399431,2614.1,2613.8,0.46739624]
[1739324650404,7.31399431,2614.1,2613.5,0.5626]
[1739324650601,7.31399431,2614.1,2613.6,0.46728834]
[1739324650906,7.31399431,2614.1,2613.7,0.46728834]
[1739324651099,7.31399431,2614.1,2613.8,0.46728834]
[1739324651298,7.31399431,2614.1,2613.5,0.5626]
[1739324651499,7.31399431,2614.1,2613.6,0.46722029]
[1739324651700,7.31399431,2614.1,2613.7,0.46722029]
[1739324652001,7.31399431,2614.1,2613.8,0.46722029]
[1739324652202,7.31399431,2614.1,2613.9,0.46722029]
[1739324652398,7.31399431,2614.1,2613.6,0.569]
[1739324652703,1.713,2614.0,2613.7,0.46705229]
[1739324653002,1.713,2614.0,2613.8,0.46705229]
[1739324653199,4.0616878,2613.9,2613.6,3.72298394]
[1739324653404,4.0616878,2613.9,2613.7,0.4671486]
[1739324653606,0.5808,2613.8,2613.6,0.569]
[1739324653806,1.1394,2613.8,2613.7,0.46718065]
[1739324655505,1.1394,2613.8,2613.7,0.46730084]
[1739324655992,0.5808,2613.8,2613.7,0.46723743]
[1739324656400,1.713,2614.0,2613.7,0.46723743]
[1739324656697,4.05808229,2613.9,2613.8,1.06263743]
[1739324657595,4.05808229,2613.9,2613.8,1.0626772]
[1739324659502,4.05808229,2613.9,2613.8,0.4672772]
[1739324659699,4.05808229,2613.9,2613.8,0.4674225]
[1739324662109,4.05808229,2613.9,2613.6,0.569]
[1739324664209,0.6084,2613.8,2613.6,0.569]
[1739324664416,0.6084,2613.8,2613.5,1.1459]
[1739324664608,0.5924,2613.7,2613.6,0.46764311]
[1739324664812,1.1802,2613.7,2613.6,0.46764311]
[1739324665211,1.1802,2613.7,2613.5,1.1459]
[1739324665714,1.1802,2613.7,2613.6,0.46756257]
[1739324665913,4.35196321,2613.6,2613.4,3.2078]
[1739324666405,1.1802,2613.7,2613.4,3.2078]
[1739324666713,4.35196321,2613.5,2613.4,3.2078]
[1739324666916,4.35196321,2613.6,2613.4,3.67530122]
[1739324667104,1.1802,2613.7,2613.4,3.2078]
[1739324667311,4.38530726,2613.6,2613.4,3.2078]
[1739324670417,4.38530726,2613.6,2613.5,0.46718715]
[1739324672719,4.38530726,2613.6,2613.5,0.46713019]
[1739324673311,4.38530726,2613.6,2613.5,0.46720974]
[1739324674322,4.38530726,2613.6,2613.4,4.75486375]
[1739324674523,4.38530726,2613.6,2613.5,0.46708297]
[1739324675026,4.38530726,2613.6,2613.5,0.46707352]
[1739324677219,0.5924,2613.7,2613.5,0.46707352]
[1739324677521,1.712,2614.1,2613.6,7.92640102]
[1739324677726,2.2729,2614.1,2614.0,1.54706375]
[1739324677927,6.37542525,2614.1,2614.0,1.54706375]
[1739324679623,6.37542525,2614.1,2613.7,3.71073372]
[1739324681320,4.10252525,2614.1,2613.7,3.71073372]
[1739324681624,3.2078,2614.2,2613.8,0.46663661]
[1739324681824,3.2078,2614.2,2613.9,0.46663661]
[1739324682025,3.2078,2614.2,2613.7,3.71073372]
[1739324682225,3.2078,2614.2,2613.8,0.46655139]
[1739324682525,3.2078,2614.2,2613.7,3.71073372]
[1739324682726,3.2078,2614.2,2613.8,0.46649509]
[1739324682929,3.2078,2614.2,2613.7,3.71073372]
[1739324683116,4.00445182,2614.1,2613.7,3.71073372]
[1739324683319,4.58215182,2614.1,2613.7,0.5697]
[1739324683921,4.58215182,2614.1,2613.4,3.14103372]
[1739324684120,4.58215182,2614.1,2613.5,0.46664722]
[1739324684321,4.58215182,2614.1,2613.4,3.71173372]
[1739324684521,4.58215182,2614.1,2613.5,0.46660605]
[1739324684722,4.58215182,2614.1,2613.4,3.71173372]
[1739324684723,4.58215182,2614.1,2613.6,0.46656091]
[1739324684923,4.58215182,2614.1,2613.4,3.71173372]
[1739324685124,4.58215182,2614.1,2613.5,0.46656392]
[1739324685319,4.58215182,2614.1,2613.6,0.46656392]
[1739324685519,4.58215182,2614.1,2613.7,0.46657744]
[1739324685732,4.58215182,2614.1,2613.4,3.71173372]
[1739324686027,4.58215182,2614.1,2613.5,0.46656938]
[1739324686228,4.58215182,2614.1,2613.6,0.46656938]
[1739324686430,4.58215182,2614.1,2613.7,0.46656938]
[1739324686619,4.58215182,2614.1,2613.4,3.71173372]
[1739324686824,4.58215182,2614.1,2613.5,0.46657723]
[1739324687122,4.58215182,2614.1,2613.6,0.46657723]
[1739324687431,4.58215182,2614.1,2613.7,0.46657723]
[1739324687730,4.58215182,2614.1,2613.4,3.71173372]
[1739324688030,4.58215182,2614.1,2613.5,0.46663062]
[1739324688223,4.58215182,2614.1,2613.6,0.46663062]
[1739324688424,4.58215182,2614.1,2613.7,0.46663062]
[1739324688623,4.58215182,2614.1,2613.4,3.71173372]
[1739324688828,4.58215182,2614.1,2613.5,0.46665749]
[1739324689029,3.2078,2613.9,2613.4,3.71173372]
[1739324689227,0.5744,2613.8,2613.5,0.46673561]
[1739324689531,0.5889,2613.7,2613.4,3.71173372]
[1739324689830,0.5889,2613.7,2613.5,0.46673144]
[1739324690032,0.5889,2613.7,2613.4,3.71173372]
[1739324690228,0.5889,2613.7,2613.5,0.46669327]
[1739324690532,0.5889,2613.7,2613.4,3.71173372]
[1739324690830,0.5889,2613.7,2613.5,0.46671484]
[1739324691028,0.5889,2613.7,2613.4,3.71173372]
[1739324691227,0.5889,2613.7,2613.5,0.46673297]
[1739324691430,0.5889,2613.7,2613.4,3.71173372]
[1739324691736,0.5889,2613.7,2613.5,0.46678117]
[1739324691925,0.5889,2613.7,2613.4,3.71173372]
[1739324692126,0.5889,2613.7,2613.5,0.46677784]
[1739324692326,0.5889,2613.7,2613.4,3.71173372]
[1739324692522,2.3009,2613.7,2613.5,0.46677688]
[1739324692725,4.02793217,2613.6,2613.2,40.8]
[1739324692931,4.02793217,2613.6,2613.3,0.4667793]
[1739324693236,4.02793217,2613.6,2613.4,0.4667793]
[1739324693432,4.02793217,2613.6,2613.2,44.0078]
[1739324693735,2.8973,2613.8,2613.5,3.2078]
[1739324694036,4.33233085,2613.7,2613.6,2.1955474]
[1739324694231,4.33233085,2613.7,2613.6,2.19530684]
[1739324694535,4.33233085,2613.8,2613.6,2.19530684]
[1739324694728,1.712,2614.2,2613.7,0.46650684]
[1739324694928,1.712,2614.2,2613.6,1.7288]
[1739324695129,5.90000056,2614.2,2613.7,0.46641415]
[1739324695331,5.90000056,2614.2,2613.6,1.7288]
[1739324695544,5.90000056,2614.2,2613.7,0.46634371]
[1739324695834,5.90000056,2614.2,2613.8,0.4663222]
[1739324696037,5.90000056,2614.2,2613.6,1.7288]
[1739324696230,5.90000056,2614.2,2613.7,0.46631413]
[1739324696433,5.90000056,2614.2,2613.6,1.7288]
[1739324696734,5.90000056,2614.2,2613.7,0.46628819]
[1739324697034,5.90000056,2614.2,2613.6,1.7288]
[1739324697336,5.90000056,2614.2,2613.7,0.46625257]
[1739324697526,5.90000056,2614.2,2613.6,1.7288]
[1739324697732,5.90000056,2614.2,2613.7,0.4662362]
[1739324697934,5.90000056,2614.2,2613.7,3.14103372]
[1739324698135,5.90000056,2614.2,2613.8,0.46618591]
[1739324698332,4.18800056,2614.2,2613.8,3.2078]
[1739324698538,4.18800056,2614.2,2614.0,3.14103372]
[1739324698740,4.18800056,2614.2,2614.1,1.6026831]
[1739324698938,4.18800056,2614.2,2614.1,2.1849006]
[1739324700347,4.18800056,2614.2,2614.1,5.3927006]
[1739324700534,4.18800056,2614.2,2614.1,4.9267]
[1739324700838,4.18800056,2614.2,2614.1,5.39261503]
[1739324701836,4.18800056,2614.2,2614.1,46.19261503]
[1739324702750,0.00573998,2614.4,2614.1,46.19261503]
[1739324703055,0.00573998,2614.4,2614.3,3.14103372]
[1739324703250,0.00573998,2614.4,2614.3,3.60694875]
[1739324703548,20.042,2614.8,2614.3,3.60694875]
[1739324703745,3.2078,2615.0,2614.6,3.14103372]
[1739324703945,3.2078,2615.0,2614.7,1.798]
[1739324704145,4.17742893,2614.9,2614.7,1.798]
[1739324707052,3.2078,2615.0,2614.7,1.798]
[1739324709052,0.00378147,2615.1,2614.7,1.798]
[1739324709249,0.00378147,2615.1,2614.5,3.21353998]
[1739324709446,7.51846745,2614.9,2614.5,3.21353998]
[1739324709646,0.5651,2614.8,2614.5,3.21353998]
[1739324709847,1.1979,2614.7,2614.5,3.21353998]
[1739324710348,4.16042831,2614.6,2614.5,3.21353998]
[1739324710553,2.3018,2615.0,2614.5,3.21353998]
[1739324710854,2.3018,2615.0,2614.6,4.30413372]
[1739324711047,0.5918,2615.0,2614.7,0.5711]
[1739324711554,0.59058147,2615.1,2614.7,0.5711]
[1739324712049,0.00378147,2615.1,2614.7,0.5711]
[1739324712244,0.00378147,2615.1,2614.9,3.2078]
[1739324712650,0.00378147,2615.1,2615.0,0.5992]
[1739324713243,0.00378147,2615.1,2615.0,41.3992]
[1739324714153,0.00378147,2615.1,2614.9,3.2078]
[1739324714451,4.43181132,2615.0,2614.9,3.2078]
[1739324714655,5.53971132,2615.0,2614.9,3.2078]
[1739324714856,5.53971132,2615.0,2614.8,40.8]
[1739324715053,0.5826,2614.9,2614.8,40.8]
[1739324715246,0.5826,2614.9,2614.5,0.00573998]
[1739324715453,6.36582259,2614.9,2614.5,0.00573998]
[1739324715956,6.36582259,2614.9,2614.5,40.80573998]
[1739324716652,3.14103372,2614.7,2614.5,40.80573998]
[1739324716952,6.34883372,2614.7,2614.5,40.80573998]
[1739324717156,4.15560266,2614.6,2614.5,40.80573998]
[1739324720952,4.15560266,2614.6,2614.5,0.00573998]
[1739324721751,3.14103372,2614.4,2614.0,40.8]
[1739324721954,3.14103372,2614.1,2613.5,3.2078]
[1739324722155,1.1503,2614.0,2613.5,3.2078]
[1739324722355,3.14103372,2613.8,2613.2,3.2078]
[1739324722561,1.71,2613.7,2612.9,3.2078]
[1739324722764,5.84299806,2613.7,2613.3,3.2078]
[1739324722954,0.00573998,2613.6,2613.3,3.2078]
[1739324723259,0.00573998,2613.6,2613.4,41.3535]
[1739324723461,0.00573998,2613.6,2613.4,41.9466]
[1739324723859,0.00573998,2613.6,2613.5,0.46506431]
[1739324724159,0.00573998,2613.6,2613.5,1.02676431]
[1739324724551,0.00573998,2613.6,2613.5,41.82676431]
[1739324725563,0.00573998,2613.6,2613.5,41.26506431]
[1739324727056,0.00573998,2613.6,2613.5,41.26520531]
[1739324728061,0.6033,2614.5,2613.5,48.03057531]
[1739324728364,4.99187559,2614.3,2614.0,3.2078]
[1739324728662,4.99187559,2614.3,2613.6,3.60623903]
[1739324728663,4.99187559,2614.3,2613.7,3.2078]
[1739324728857,4.99187559,2614.3,2613.8,0.46517522]
[1739324729057,4.99187559,2614.3,2613.8,0.5949]
[1739324729261,4.99565706,2614.3,2613.8,0.5949]
[1739324731563,4.99565706,2614.3,2613.7,3.2078]
[1739324732960,4.99565706,2614.3,2613.7,3.7906]
[1739324734363,4.99565706,2614.3,2614.0,3.2078]
[1739324734563,4.99565706,2614.3,2614.1,0.5688]
[1739324734859,3.2078,2614.9,2614.2,3.14103372]
[1739324735056,3.2078,2614.9,2614.4,3.2078]
[1739324735261,4.07685604,2614.8,2614.4,3.2078]
[1739324735562,4.07685604,2614.8,2614.5,40.8]
[1739324736662,4.63215604,2614.8,2614.5,40.8]
[1739324737355,4.63215604,2614.8,2614.5,41.3919]
[1739324737763,4.07685604,2614.8,2614.5,41.3919]
[1739324739960,4.07685604,2614.8,2614.5,40.8]
[1739324740263,4.07685604,2614.8,2614.5,0.592]
[1739324740864,4.07685604,2614.8,2614.6,40.8]
[1739324741369,0.5521,2615.0,2614.6,40.8]
[1739324741571,3.2078,2615.2,2614.7,0.5986]
[1739324741764,3.2078,2615.2,2614.8,0.5741]
[1739324741959,4.24182333,2615.1,2614.8,0.5741]
[1739324742267,0.5955,2615.4,2614.9,0.5605]
[1739324742471,0.5761,2615.5,2615.1,3.14103372]
[1739324742966,4.24288892,2615.4,2615.1,3.14103372]
[1739324743169,4.24288892,2615.4,2615.2,3.2078]
[1739324743376,4.24288892,2615.4,2615.3,0.5605]
[1739324747866,4.82798892,2615.4,2615.3,0.5605]
[1739324749173,4.82798892,2615.4,2615.2,3.2078]
[1739324749476,4.82798892,2615.4,2614.9,3.7663]
[1739324752073,3.2078,2615.2,2614.8,0.5741]
[1739324752271,3.2078,2614.9,2614.6,40.8]
[1739324752470,0.5731,2614.8,2614.6,40.8]
[1739324752672,3.14103372,2614.7,2614.6,40.8]
[1739324752879,3.14103372,2614.7,2614.4,0.00573998]
[1739324752880,3.74933372,2614.7,2614.4,0.00573998]
[1739324753170,4.9168,2614.6,2614.4,0.00573998]
[1739324753577,4.10261269,2614.5,2614.4,0.00573998]
[1739324755771,1.709,2614.6,2614.4,0.00573998]
[1739324755964,1.709,2614.6,2614.4,0.60373998]
[1739324756562,0.5731,2614.8,2614.5,3.14103372]
[1739324756969,0.5731,2614.8,2614.4,1.15683998]
[1739324757275,4.41484047,2614.7,2614.4,0.60373998]
[1739324758073,4.41484047,2614.7,2614.4,0.00573998]
[1739324758278,0.6052,2614.6,2614.4,0.00573998]
[1739324758672,4.06370509,2614.5,2614.4,0.00573998]
[1739324760475,0.5731,2614.8,2614.4,0.57263998]
[1739324760677,0.5731,2614.8,2614.5,3.2078]
[1739324760878,0.6052,2615.2,2614.6,3.72413372]
[1739324761078,1.709,2615.4,2614.9,3.14103372]
[1739324761376,1.709,2615.4,2614.8,3.2078]
[1739324761377,4.39311527,2615.1,2615.0,0.5669]
[1739324761568,4.39311527,2615.3,2615.0,41.3669]
[1739324761773,1.709,2615.4,2615.0,41.3669]
[1739324761969,4.39311527,2615.3,2615.0,41.3669]
[1739324762175,0.5996,2615.2,2615.0,40.8]
[1739324762677,4.55347266,2615.1,2615.0,40.8]
[1739324763382,4.55347266,2615.1,2614.8,3.2078]
[1739324763584,7.76127266,2615.1,2614.4,3.79403998]
[1739324763776,3.14103372,2615.0,2614.4,0.00573998]
[1739324763978,3.14103372,2615.0,2614.5,40.8]
[1739324764174,4.13292594,2614.9,2614.5,40.8]
[1739324764582,4.9168,2614.8,2614.5,40.8]
[1739324764778,1.1694,2614.7,2614.5,40.8]
[1739324764979,5.15336246,2614.7,2614.5,40.8]